[Event "*** Titled Tuesday Blitz"]
[Site "Chess.com"]
[Date "2020.04.28"]
[Round "5"]
[White "DFeco"]
[Black "Ariadna_Atreides"]
[Result "1-0"]
[WhiteElo "2192"]
[BlackElo "2022"]
[TimeControl "180+1"]
[EndTime "10:55:59 PDT"]
[Termination "DFeco won on time"]

1. c4 {[%clk 0:03:00.9]} 1... Nf6 {[%clk 0:02:58.9]} 2. g3 {[%clk 0:03:00.8]}
2... c6 {[%clk 0:02:57.4]} 3. Bg2 {[%clk 0:02:58.4]} 3... d5 {[%clk 0:02:57.8]}
4. Nf3 {[%clk 0:02:57.8]} 4... Nbd7 {[%clk 0:02:55.8]} 5. cxd5 {[%clk
0:02:54.3]} 5... cxd5 {[%clk 0:02:55.2]} 6. O-O {[%clk 0:02:54.8]} 6... e5
{[%clk 0:02:48.7]} 7. Qa4 {[%clk 0:02:50.5]} 7... Bd6 {[%clk 0:02:45.4]} 8. d4
{[%clk 0:02:46.2]} 8... e4 {[%clk 0:02:43.8]} 9. Ne5 {[%clk 0:02:45.1]} 9... O-O
{[%clk 0:02:40.5]} 10. Nxd7 {[%clk 0:02:29.3]} 10... Bxd7 {[%clk 0:02:39.9]} 11.
Qb3 {[%clk 0:02:28.2]} 11... Bc6 {[%clk 0:02:33.2]} 12. Nc3 {[%clk 0:02:27.5]}
12... Rc8 {[%clk 0:02:27.9]} 13. Bg5 {[%clk 0:02:26.2]} 13... Be7 {[%clk
0:02:20.4]} 14. e3 {[%clk 0:02:09.4]} 14... Qd7 {[%clk 0:02:16.4]} 15. f3 {[%clk
0:02:04.8]} 15... exf3 {[%clk 0:02:11.4]} 16. Bxf3 {[%clk 0:02:01.2]} 16... h6
{[%clk 0:02:10.8]} 17. Bxf6 {[%clk 0:01:58.9]} 17... Bxf6 {[%clk 0:02:10.6]} 18.
Nxd5 {[%clk 0:01:53.8]} 18... Bd8 {[%clk 0:01:54.3]} 19. Nf4 {[%clk 0:01:42.6]}
19... Re8 {[%clk 0:01:40.2]} 20. Bxc6 {[%clk 0:01:11.3]} 20... bxc6 {[%clk
0:01:38.5]} 21. Rae1 {[%clk 0:01:07.7]} 21... Bb6 {[%clk 0:01:34.3]} 22. Rf3
{[%clk 0:00:59.2]} 22... Qg4 {[%clk 0:01:06.7]} 23. Ref1 {[%clk 0:00:56.9]}
23... Re7 {[%clk 0:00:57.7]} 24. Kg2 {[%clk 0:00:28.5]} 24... Kh8 {[%clk
0:00:46.9]} 25. h3 {[%clk 0:00:26.5]} 25... Qd7 {[%clk 0:00:46.5]} 26. Nh5
{[%clk 0:00:25.5]} 26... f6 {[%clk 0:00:40.4]} 27. Nxf6 {[%clk 0:00:23.9]} 27...
gxf6 {[%clk 0:00:38.6]} 28. Rxf6 {[%clk 0:00:24.1]} 28... Qd5+ {[%clk
0:00:30.9]} 29. Qxd5 {[%clk 0:00:20.5]} 29... cxd5 {[%clk 0:00:31.8]} 30. Rxh6+
{[%clk 0:00:20.6]} 30... Kg7 {[%clk 0:00:31.6]} 31. Rhf6 {[%clk 0:00:20.7]}
31... Rc2+ {[%clk 0:00:21]} 32. R6f2 {[%clk 0:00:21]} 32... Rxf2+ {[%clk
0:00:20]} 33. Rxf2 {[%clk 0:00:21.5]} 33... Rxe3 {[%clk 0:00:18.9]} 34. Rd2
{[%clk 0:00:22]} 34... Re4 {[%clk 0:00:18.2]} 35. Rc2 {[%clk 0:00:21.1]} 35...
Rxd4 {[%clk 0:00:16.9]} 36. b3 {[%clk 0:00:21.6]} 36... Re4 {[%clk 0:00:14.7]}
37. a4 {[%clk 0:00:21.7]} 37... d4 {[%clk 0:00:09.7]} 38. b4 {[%clk 0:00:21.6]}
38... d3 {[%clk 0:00:09.1]} 39. Rd2 {[%clk 0:00:22]} 39... Rxb4 {[%clk
0:00:07.5]} 40. Rxd3 {[%clk 0:00:21.9]} 40... Rxa4 {[%clk 0:00:07.6]} 41. Rd7+
{[%clk 0:00:20.6]} 41... Kf6 {[%clk 0:00:06.8]} 42. g4 {[%clk 0:00:20.9]} 42...
Kg5 {[%clk 0:00:06.2]} 43. Rg7+ {[%clk 0:00:20.2]} 43... Kf4 {[%clk 0:00:05.3]}
44. Rf7+ {[%clk 0:00:20.7]} 44... Ke5 {[%clk 0:00:05]} 45. g5 {[%clk 0:00:20.6]}
1-0

[Event "*** Titled Tuesday Blitz"]
[Site "Chess.com"]
[Date "2020.04.28"]
[Round "5"]
[White "Embrujada"]
[Black "rogapa"]
[Result "0-1"]
[WhiteElo "2449"]
[BlackElo "2739"]
[TimeControl "180+1"]
[EndTime "10:56:02 PDT"]
[Termination "rogapa won on time"]

1. b3 {[%clk 0:02:59.1]} 1... e5 {[%clk 0:02:57.1]} 2. Bb2 {[%clk 0:02:59]} 2...
Nc6 {[%clk 0:02:58]} 3. e3 {[%clk 0:02:57.8]} 3... Nf6 {[%clk 0:02:57.6]} 4. Bb5
{[%clk 0:02:56.9]} 4... Bd6 {[%clk 0:02:55.4]} 5. Ne2 {[%clk 0:02:57.1]} 5...
O-O {[%clk 0:02:40.3]} 6. Na3 {[%clk 0:02:55.5]} 6... Na5 {[%clk 0:02:39.6]} 7.
Ng3 {[%clk 0:02:54.8]} 7... c6 {[%clk 0:02:38.4]} 8. Be2 {[%clk 0:02:53.7]} 8...
b5 {[%clk 0:02:32]} 9. O-O {[%clk 0:02:44.7]} 9... Bc7 {[%clk 0:02:27.4]} 10. c4
{[%clk 0:02:43.2]} 10... bxc4 {[%clk 0:02:24]} 11. Nxc4 {[%clk 0:02:42]} 11...
Nxc4 {[%clk 0:02:23]} 12. bxc4 {[%clk 0:02:42.3]} 12... d5 {[%clk 0:02:21.5]}
13. cxd5 {[%clk 0:02:35]} 13... cxd5 {[%clk 0:02:22.4]} 14. d4 {[%clk 0:02:28]}
14... e4 {[%clk 0:02:21.4]} 15. Ba3 {[%clk 0:02:23.1]} 15... Re8 {[%clk
0:02:20.2]} 16. Bb5 {[%clk 0:02:12.1]} 16... Bd7 {[%clk 0:02:12.8]} 17. Rb1
{[%clk 0:01:56.8]} 17... Rb8 {[%clk 0:02:10.3]} 18. Qa4 {[%clk 0:01:49.9]} 18...
Bxg3 {[%clk 0:01:54.5]} 19. hxg3 {[%clk 0:01:40.5]} 19... Bxb5 {[%clk
0:01:26.3]} 20. Rxb5 {[%clk 0:01:39.7]} 20... Qd7 {[%clk 0:01:25.3]} 21. Rfb1
{[%clk 0:01:38]} 21... Rxb5 {[%clk 0:01:23.8]} 22. Qxb5 {[%clk 0:01:19.7]} 22...
Qf5 {[%clk 0:01:23.1]} 23. Bd6 {[%clk 0:01:07.1]} 23... h6 {[%clk 0:01:22.8]}
24. Be5 {[%clk 0:01:06.9]} 24... Re6 {[%clk 0:01:16.9]} 25. Qc5 {[%clk
0:00:55.9]} 25... Ng4 {[%clk 0:01:14.2]} 26. Rb8+ {[%clk 0:00:55]} 26... Kh7
{[%clk 0:01:13.7]} 27. Rh8+ {[%clk 0:00:54.6]} 27... Kg6 {[%clk 0:01:14]} 28.
Bf4 {[%clk 0:00:51.1]} 28... Rb6 {[%clk 0:01:07.4]} 29. Qc2 {[%clk 0:00:37.7]}
29... Qh5 {[%clk 0:00:51.7]} 30. Rc8 {[%clk 0:00:19.1]} 30... Qh2+ {[%clk
0:00:50.7]} 31. Kf1 {[%clk 0:00:17.6]} 31... Qh1+ {[%clk 0:00:46.1]} 32. Ke2
{[%clk 0:00:17.8]} 32... Qxg2 {[%clk 0:00:42.2]} 33. Rc6+ {[%clk 0:00:17.8]}
33... f6 {[%clk 0:00:41.5]} 34. Rxb6 {[%clk 0:00:11.9]} 34... Qxf2+ {[%clk
0:00:41.1]} 35. Kd1 {[%clk 0:00:12.2]} 35... Qf1+ {[%clk 0:00:40.9]} 36. Kd2
{[%clk 0:00:12.5]} 36... axb6 {[%clk 0:00:38.5]} 37. Qc8 {[%clk 0:00:12.5]}
37... Qd3+ {[%clk 0:00:36.5]} 38. Kc1 {[%clk 0:00:11.7]} 38... Nxe3 {[%clk
0:00:33.8]} 39. Bxe3 {[%clk 0:00:03.4]} 39... Qxe3+ {[%clk 0:00:33.5]} 40. Kb1
{[%clk 0:00:03.9]} 40... Qg1+ {[%clk 0:00:30.9]} 41. Kb2 {[%clk 0:00:03.6]}
41... Qxd4+ {[%clk 0:00:30.7]} 42. Kb1 {[%clk 0:00:02.2]} 42... Qd3+ {[%clk
0:00:29.1]} 43. Kb2 {[%clk 0:00:02.3]} 43... Qxg3 {[%clk 0:00:29.6]} 44. Qe8+
{[%clk 0:00:01.3]} 44... Kh7 {[%clk 0:00:29.5]} 0-1

[Event "*** Titled Tuesday Blitz"]
[Site "Chess.com"]
[Date "2020.04.28"]
[Round "5"]
[White "DinaBelenkaya"]
[Black "TargetA"]
[Result "0-1"]
[WhiteElo "2196"]
[BlackElo "2477"]
[TimeControl "180+1"]
[EndTime "10:56:03 PDT"]
[Termination "TargetA won by checkmate"]

1. e4 {[%clk 0:02:29.1]} 1... c5 {[%clk 0:02:53.3]} 2. Nf3 {[%clk 0:02:29.3]}
2... d6 {[%clk 0:02:53.2]} 3. Bb5+ {[%clk 0:02:28.8]} 3... Nc6 {[%clk
0:02:51.6]} 4. O-O {[%clk 0:02:27.3]} 4... e5 {[%clk 0:02:49.6]} 5. c3 {[%clk
0:02:21.9]} 5... Nf6 {[%clk 0:02:37.7]} 6. Re1 {[%clk 0:02:21.5]} 6... a6 {[%clk
0:02:24.7]} 7. Bf1 {[%clk 0:02:16.2]} 7... Bg4 {[%clk 0:02:15.9]} 8. h3 {[%clk
0:02:14.4]} 8... Bh5 {[%clk 0:02:15.9]} 9. d3 {[%clk 0:02:13.6]} 9... Be7 {[%clk
0:02:14.6]} 10. Nbd2 {[%clk 0:02:13.2]} 10... O-O {[%clk 0:02:14]} 11. Nc4
{[%clk 0:02:12.8]} 11... b5 {[%clk 0:02:12.5]} 12. Ne3 {[%clk 0:02:12.9]} 12...
d5 {[%clk 0:02:10.4]} 13. g4 {[%clk 0:02:03.6]} 13... Bg6 {[%clk 0:01:50]} 14.
g5 {[%clk 0:01:36]} 14... Nxe4 {[%clk 0:01:36.6]} 15. dxe4 {[%clk 0:01:34.5]}
15... Bxe4 {[%clk 0:01:34.3]} 16. Ng4 {[%clk 0:01:24.7]} 16... f5 {[%clk
0:01:14.4]} 17. Ngxe5 {[%clk 0:01:03.5]} 17... Nxe5 {[%clk 0:01:12.1]} 18. Nxe5
{[%clk 0:01:04.4]} 18... Bxg5 {[%clk 0:01:11.4]} 19. f4 {[%clk 0:01:01]} 19...
Bh4 {[%clk 0:01:04.9]} 20. Be3 {[%clk 0:00:40.1]} 20... Bxe1 {[%clk 0:00:43.4]}
21. Qxe1 {[%clk 0:00:41]} 21... d4 {[%clk 0:00:43]} 22. Bf2 {[%clk 0:00:36.4]}
22... Rf6 {[%clk 0:00:38.5]} 23. Bh4 {[%clk 0:00:30.1]} 23... dxc3 {[%clk
0:00:31.2]} 24. bxc3 {[%clk 0:00:27.5]} 24... Qb6 {[%clk 0:00:20]} 25. Bxf6
{[%clk 0:00:21.7]} 25... Qxf6 {[%clk 0:00:20.5]} 26. Rd1 {[%clk 0:00:17.5]}
26... Re8 {[%clk 0:00:19.4]} 27. Qg3 {[%clk 0:00:16.1]} 27... h6 {[%clk
0:00:17.2]} 28. Bg2 {[%clk 0:00:14.9]} 28... Bxg2 {[%clk 0:00:13.7]} 29. Kxg2
{[%clk 0:00:15.8]} 29... g5 {[%clk 0:00:12.4]} 30. Kh2 {[%clk 0:00:09.1]} 30...
Kh8 {[%clk 0:00:11.7]} 31. Rd7 {[%clk 0:00:07.1]} 31... Qe6 {[%clk 0:00:07.5]}
32. Nf7+ {[%clk 0:00:04.7]} 32... Kg8 {[%clk 0:00:07.8]} 33. Ne5 {[%clk
0:00:04.7]} 33... Kh8 {[%clk 0:00:06.9]} 34. Qg2 {[%clk 0:00:03.8]} 34... Qf6
{[%clk 0:00:06.3]} 35. Qb7 {[%clk 0:00:03.7]} 35... gxf4 {[%clk 0:00:03.8]} 36.
Rh7+ {[%clk 0:00:03.7]} 36... Kg8 {[%clk 0:00:04.3]} 37. Nf3 {[%clk 0:00:02.5]}
37... Re2+ {[%clk 0:00:03.7]} 38. Kh1 {[%clk 0:00:02.3]} 38... Qg6 {[%clk
0:00:04]} 39. Qc7 {[%clk 0:00:01.2]} 39... Qg2# {[%clk 0:00:03.4]} 0-1

[Event "*** Titled Tuesday Blitz"]
[Site "Chess.com"]
[Date "2020.04.28"]
[Round "5"]
[White "ItsCheckM8Mate"]
[Black "zabivol_mc"]
[Result "0-1"]
[WhiteElo "2248"]
[BlackElo "2449"]
[TimeControl "180+1"]
[EndTime "10:56:05 PDT"]
[Termination "zabivol_mc won by resignation"]

1. e4 {[%clk 0:03:00.9]} 1... e6 {[%clk 0:02:59.8]} 2. d4 {[%clk 0:03:00.7]}
2... d5 {[%clk 0:03:00.4]} 3. exd5 {[%clk 0:03:01.2]} 3... exd5 {[%clk
0:03:00.3]} 4. c4 {[%clk 0:03:01.8]} 4... Nf6 {[%clk 0:02:58.6]} 5. Nc3 {[%clk
0:03:01.8]} 5... c6 {[%clk 0:02:51.9]} 6. Bd3 {[%clk 0:03:01.7]} 6... Bd6 {[%clk
0:02:48.6]} 7. Nge2 {[%clk 0:03:01.7]} 7... O-O {[%clk 0:02:48.7]} 8. c5 {[%clk
0:03:01.7]} 8... Bc7 {[%clk 0:02:48.2]} 9. O-O {[%clk 0:02:48.6]} 9... b6 {[%clk
0:02:47.9]} 10. b4 {[%clk 0:02:32.2]} 10... a5 {[%clk 0:02:47.5]} 11. cxb6
{[%clk 0:02:25.1]} 11... Bxb6 {[%clk 0:02:47.2]} 12. bxa5 {[%clk 0:02:25]} 12...
Rxa5 {[%clk 0:02:46.8]} 13. Bg5 {[%clk 0:02:22.8]} 13... h6 {[%clk 0:02:39.8]}
14. Bh4 {[%clk 0:02:20.9]} 14... Nbd7 {[%clk 0:02:26.7]} 15. Na4 {[%clk
0:02:11.2]} 15... Ba7 {[%clk 0:02:21.6]} 16. Rc1 {[%clk 0:02:10.2]} 16... Ba6
{[%clk 0:02:11.3]} 17. Bxa6 {[%clk 0:01:37.2]} 17... Rxa6 {[%clk 0:02:11.4]} 18.
Nac3 {[%clk 0:01:23.7]} 18... Qa5 {[%clk 0:02:10.7]} 19. Qd3 {[%clk 0:01:21.5]}
19... Re8 {[%clk 0:01:55.7]} 20. Bg3 {[%clk 0:01:12.7]} 20... c5 {[%clk
0:01:53.1]} 21. dxc5 {[%clk 0:01:08.6]} 21... Nxc5 {[%clk 0:01:52.9]} 22. Qf5
{[%clk 0:00:51.3]} 22... Nce4 {[%clk 0:01:46.1]} 23. Rfd1 {[%clk 0:00:43.6]}
23... Nxc3 {[%clk 0:01:25.1]} 24. Nxc3 {[%clk 0:00:42.9]} 24... d4 {[%clk
0:01:20.7]} 25. Nb5 {[%clk 0:00:33]} 25... Qxa2 {[%clk 0:01:08.5]} 26. Nxd4
{[%clk 0:00:26.3]} 26... Ra5 {[%clk 0:00:59.9]} 27. Qf3 {[%clk 0:00:23.7]} 27...
Ra3 {[%clk 0:00:26.7]} 28. Qf5 {[%clk 0:00:22.3]} 28... Ra4 {[%clk 0:00:24.5]}
29. Nf3 {[%clk 0:00:17.1]} 29... Ng4 {[%clk 0:00:16.7]} 30. Qd7 {[%clk
0:00:14.7]} 30... Bxf2+ {[%clk 0:00:12.8]} 31. Bxf2 {[%clk 0:00:13.9]} 31...
Qxf2+ {[%clk 0:00:12.1]} 32. Kh1 {[%clk 0:00:14.4]} 32... Rae4 {[%clk
0:00:12.3]} 33. Rf1 {[%clk 0:00:11.2]} 33... Qb2 {[%clk 0:00:10.8]} 34. Rb1
{[%clk 0:00:09.4]} 34... Qc2 {[%clk 0:00:09.4]} 35. Rbc1 {[%clk 0:00:09.3]}
35... Qa2 {[%clk 0:00:09.1]} 36. Ra1 {[%clk 0:00:09.2]} 36... Qe2 {[%clk
0:00:07.4]} 37. Rad1 {[%clk 0:00:08.8]} 37... Nf2+ {[%clk 0:00:06.6]} 38. Rxf2
{[%clk 0:00:06.2]} 38... Qxf2 {[%clk 0:00:07.1]} 39. Qd3 {[%clk 0:00:03.5]}
39... Re1+ {[%clk 0:00:03.3]} 40. Rxe1 {[%clk 0:00:02.9]} 40... Rxe1+ {[%clk
0:00:03.4]} 0-1

[Event "*** Titled Tuesday Blitz"]
[Site "Chess.com"]
[Date "2020.04.28"]
[Round "5"]
[White "Sibelephant"]
[Black "bancsoo"]
[Result "1-0"]
[WhiteElo "3195"]
[BlackElo "2678"]
[TimeControl "180+1"]
[EndTime "10:56:07 PDT"]
[Termination "Sibelephant won by resignation"]

1. d4 {[%clk 0:02:55.7]} 1... d5 {[%clk 0:02:59.8]} 2. Nf3 {[%clk 0:02:55.6]}
2... Nf6 {[%clk 0:02:59.8]} 3. c4 {[%clk 0:02:55.7]} 3... c6 {[%clk 0:02:59.3]}
4. e3 {[%clk 0:02:52.1]} 4... Bf5 {[%clk 0:02:59.2]} 5. Nc3 {[%clk 0:02:52.3]}
5... e6 {[%clk 0:02:59.5]} 6. Bd3 {[%clk 0:02:52.3]} 6... Bxd3 {[%clk
0:02:55.1]} 7. Qxd3 {[%clk 0:02:52.5]} 7... Nbd7 {[%clk 0:02:55.7]} 8. O-O
{[%clk 0:02:52.3]} 8... Bb4 {[%clk 0:02:55.5]} 9. Bd2 {[%clk 0:02:49.3]} 9...
Ba5 {[%clk 0:02:54.6]} 10. b4 {[%clk 0:02:32.7]} 10... Bc7 {[%clk 0:02:50]} 11.
b5 {[%clk 0:02:27.1]} 11... O-O {[%clk 0:02:35.6]} 12. bxc6 {[%clk 0:02:14.2]}
12... bxc6 {[%clk 0:02:35.6]} 13. cxd5 {[%clk 0:02:08.6]} 13... cxd5 {[%clk
0:02:34.4]} 14. Nb5 {[%clk 0:02:08.9]} 14... Nb6 {[%clk 0:02:27.5]} 15. Bb4
{[%clk 0:01:27.8]} 15... Re8 {[%clk 0:02:25.9]} 16. Ne5 {[%clk 0:01:28.2]} 16...
Ne4 {[%clk 0:01:23.9]} 17. Rac1 {[%clk 0:01:16]} 17... Bxe5 {[%clk 0:01:17.7]}
18. dxe5 {[%clk 0:01:16.4]} 18... Nc4 {[%clk 0:00:44.7]} 19. Rxc4 {[%clk
0:00:54.4]} 19... dxc4 {[%clk 0:00:44.9]} 20. Qxe4 {[%clk 0:00:54.7]} 20... Qb6
{[%clk 0:00:45.6]} 21. Qxc4 {[%clk 0:00:46.1]} 21... Rec8 {[%clk 0:00:22.8]} 22.
Qd3 {[%clk 0:00:40.7]} 22... a6 {[%clk 0:00:22.6]} 23. Nd6 {[%clk 0:00:40.2]}
23... Qxb4 {[%clk 0:00:20.3]} 24. Nxc8 {[%clk 0:00:40.6]} 24... Rxc8 {[%clk
0:00:21.1]} 25. Qxa6 {[%clk 0:00:41.2]} 25... Qc3 {[%clk 0:00:21.3]} 26. a4
{[%clk 0:00:32.6]} 26... h5 {[%clk 0:00:21.6]} 27. h3 {[%clk 0:00:17.4]} 27...
Rc5 {[%clk 0:00:21.9]} 28. Qa8+ {[%clk 0:00:16.2]} 28... Kh7 {[%clk 0:00:21.6]}
29. Qe4+ {[%clk 0:00:10.1]} 29... g6 {[%clk 0:00:21.3]} 30. Rb1 {[%clk
0:00:07.8]} 30... Rxe5 {[%clk 0:00:20]} 31. Qd4 {[%clk 0:00:06.7]} 31... Qa5
{[%clk 0:00:18.6]} 32. Rb7 {[%clk 0:00:04.6]} 32... Rf5 {[%clk 0:00:16.2]} 33.
Rb8 {[%clk 0:00:04.3]} 33... e5 {[%clk 0:00:16.6]} 34. Qd8 {[%clk 0:00:04.2]}
34... Qxd8 {[%clk 0:00:12.5]} 35. Rxd8 {[%clk 0:00:03.6]} 35... e4 {[%clk
0:00:13.2]} 36. Rd4 {[%clk 0:00:03.8]} 36... Re5 {[%clk 0:00:13.7]} 37. Rd2
{[%clk 0:00:04.1]} 37... Ra5 {[%clk 0:00:13.2]} 38. Ra2 {[%clk 0:00:04.7]} 38...
h4 {[%clk 0:00:13.6]} 39. Kf1 {[%clk 0:00:05.2]} 39... Kg7 {[%clk 0:00:14.4]}
40. Ke2 {[%clk 0:00:05.8]} 40... Kf6 {[%clk 0:00:15.3]} 41. Kd2 {[%clk
0:00:06.5]} 41... Ke5 {[%clk 0:00:16]} 42. Kc3 {[%clk 0:00:07.2]} 42... Kd5
{[%clk 0:00:16.8]} 43. Kb4 {[%clk 0:00:07.8]} 43... Ra8 {[%clk 0:00:17.6]} 44.
a5 {[%clk 0:00:08.3]} 44... Kc6 {[%clk 0:00:18.4]} 45. a6 {[%clk 0:00:07.6]}
45... Rb8+ {[%clk 0:00:18.9]} 46. Kc4 {[%clk 0:00:07.6]} 46... Rc8 {[%clk
0:00:19.4]} 47. Kd4 {[%clk 0:00:07.7]} 47... f5 {[%clk 0:00:19.1]} 48. a7 {[%clk
0:00:08.1]} 48... Ra8 {[%clk 0:00:19.6]} 49. Ke5 {[%clk 0:00:08.4]} 1-0

[Event "*** Titled Tuesday Blitz"]
[Site "Chess.com"]
[Date "2020.04.28"]
[Round "5"]
[White "Spartakus1975"]
[Black "Zhuu96"]
[Result "1-0"]
[WhiteElo "2753"]
[BlackElo "2950"]
[TimeControl "180+1"]
[EndTime "10:56:07 PDT"]
[Termination "Spartakus1975 won on time"]

1. e4 {[%clk 0:03:00.9]} 1... Nf6 {[%clk 0:02:54.3]} 2. e5 {[%clk 0:02:59]} 2...
Nd5 {[%clk 0:02:54.4]} 3. d4 {[%clk 0:02:58.7]} 3... d6 {[%clk 0:02:54.8]} 4.
Bc4 {[%clk 0:02:59]} 4... Nb6 {[%clk 0:02:54.6]} 5. Bb3 {[%clk 0:02:59.6]} 5...
g6 {[%clk 0:02:51.5]} 6. h3 {[%clk 0:02:45.7]} 6... Bg7 {[%clk 0:02:51.1]} 7.
Nf3 {[%clk 0:02:45.5]} 7... O-O {[%clk 0:02:51.3]} 8. Qe2 {[%clk 0:02:40.8]}
8... Nc6 {[%clk 0:02:45.7]} 9. O-O {[%clk 0:02:37.9]} 9... a5 {[%clk 0:02:37.9]}
10. a3 {[%clk 0:02:26.8]} 10... a4 {[%clk 0:02:37.6]} 11. Ba2 {[%clk 0:02:26.3]}
11... dxe5 {[%clk 0:02:37.3]} 12. dxe5 {[%clk 0:02:25.8]} 12... Ra5 {[%clk
0:02:16.1]} 13. Rd1 {[%clk 0:02:17.2]} 13... Qe8 {[%clk 0:02:15.8]} 14. Bf4
{[%clk 0:02:11.9]} 14... Be6 {[%clk 0:02:00.8]} 15. Nc3 {[%clk 0:01:57.6]} 15...
Bxa2 {[%clk 0:01:59.6]} 16. Rxa2 {[%clk 0:01:57.9]} 16... Qc8 {[%clk 0:01:59.5]}
17. Re1 {[%clk 0:01:46]} 17... Qe6 {[%clk 0:01:58.1]} 18. Raa1 {[%clk
0:01:43.2]} 18... h6 {[%clk 0:01:54.7]} 19. Rad1 {[%clk 0:01:38.9]} 19... Nc4
{[%clk 0:01:49.9]} 20. Nd4 {[%clk 0:01:37.3]} 20... Nxd4 {[%clk 0:01:47.2]} 21.
Rxd4 {[%clk 0:01:37.3]} 21... Nb6 {[%clk 0:01:29.1]} 22. Bg3 {[%clk 0:01:13.1]}
22... Qc6 {[%clk 0:01:25.9]} 23. h4 {[%clk 0:01:03.8]} 23... h5 {[%clk
0:01:23.6]} 24. Qd3 {[%clk 0:00:53.3]} 24... e6 {[%clk 0:01:19.3]} 25. Rd8
{[%clk 0:00:44.5]} 25... Nc4 {[%clk 0:01:05]} 26. Rxf8+ {[%clk 0:00:38.6]} 26...
Bxf8 {[%clk 0:01:04.8]} 27. Ne4 {[%clk 0:00:33.7]} 27... Be7 {[%clk 0:01:03.6]}
28. Nf6+ {[%clk 0:00:31.1]} 28... Kg7 {[%clk 0:01:01.1]} 29. Bf4 {[%clk
0:00:25.8]} 29... Nxb2 {[%clk 0:00:35.6]} 30. Qd2 {[%clk 0:00:25]} 30... Nc4
{[%clk 0:00:29.5]} 31. Bh6+ {[%clk 0:00:24.7]} 31... Kh8 {[%clk 0:00:29.8]} 32.
Qg5 {[%clk 0:00:22.2]} 32... Qc5 {[%clk 0:00:12.6]} 33. Qf4 {[%clk 0:00:18.9]}
33... Nxe5 {[%clk 0:00:11.3]} 34. Nd7 {[%clk 0:00:15.2]} 34... Nxd7 {[%clk
0:00:05.6]} 35. Qxf7 {[%clk 0:00:14.9]} 35... Bf8 {[%clk 0:00:06]} 36. Qxd7
{[%clk 0:00:05.1]} 36... Bxh6 {[%clk 0:00:05]} 37. Rxe6 {[%clk 0:00:05.6]} 37...
Bf8 {[%clk 0:00:02.9]} 38. Rxg6 {[%clk 0:00:05]} 38... Qd5 {[%clk 0:00:02.1]}
39. Qe8 {[%clk 0:00:03.6]} 1-0

[Event "*** Titled Tuesday Blitz"]
[Site "Chess.com"]
[Date "2020.04.28"]
[Round "5"]
[White "Alexander_Donchenko"]
[Black "GianmarcoVaR"]
[Result "1-0"]
[WhiteElo "2861"]
[BlackElo "2560"]
[TimeControl "180+1"]
[EndTime "10:56:07 PDT"]
[Termination "Alexander_Donchenko won on time"]

1. e4 {[%clk 0:03:00.9]} 1... c6 {[%clk 0:02:59.4]} 2. d4 {[%clk 0:03:00.6]}
2... d5 {[%clk 0:02:59.1]} 3. e5 {[%clk 0:03:01.2]} 3... Bf5 {[%clk 0:02:57.9]}
4. Nf3 {[%clk 0:03:01.5]} 4... e6 {[%clk 0:02:57.7]} 5. Be2 {[%clk 0:03:01.9]}
5... Ne7 {[%clk 0:02:54.6]} 6. c3 {[%clk 0:03:01.2]} 6... h6 {[%clk 0:02:52.8]}
7. O-O {[%clk 0:03:00.9]} 7... Nd7 {[%clk 0:02:48.3]} 8. Nbd2 {[%clk 0:03:00.9]}
8... c5 {[%clk 0:02:43.9]} 9. dxc5 {[%clk 0:02:56.7]} 9... Nc6 {[%clk
0:02:25.9]} 10. Bb5 {[%clk 0:02:49.5]} 10... Bxc5 {[%clk 0:02:17.8]} 11. Nb3
{[%clk 0:02:47.3]} 11... Bb6 {[%clk 0:02:16.9]} 12. Nbd4 {[%clk 0:02:34.3]}
12... Nxd4 {[%clk 0:01:51]} 13. Nxd4 {[%clk 0:02:24.5]} 13... Bg6 {[%clk
0:01:47.2]} 14. Qg4 {[%clk 0:02:21.9]} 14... O-O {[%clk 0:01:23.4]} 15. Nxe6
{[%clk 0:02:18.8]} 15... Nxe5 {[%clk 0:01:22.6]} 16. Qxg6 {[%clk 0:01:54.5]}
16... Nxg6 {[%clk 0:01:04.5]} 17. Nxd8 {[%clk 0:01:54.2]} 17... Rfxd8 {[%clk
0:01:05]} 18. Rd1 {[%clk 0:01:33.3]} 18... d4 {[%clk 0:00:57.4]} 19. Bd2 {[%clk
0:01:33]} 19... a6 {[%clk 0:00:50.9]} 20. Be2 {[%clk 0:01:28]} 20... Rd7 {[%clk
0:00:46.8]} 21. Bg4 {[%clk 0:01:26.4]} 21... Rd6 {[%clk 0:00:43.7]} 22. Kf1
{[%clk 0:01:00.1]} 22... Rad8 {[%clk 0:00:40.2]} 23. cxd4 {[%clk 0:00:46.4]}
23... Rxd4 {[%clk 0:00:30.4]} 24. Be3 {[%clk 0:00:43.6]} 24... Rxd1+ {[%clk
0:00:30.1]} 25. Rxd1 {[%clk 0:00:43.7]} 25... Rxd1+ {[%clk 0:00:30.3]} 26. Bxd1
{[%clk 0:00:44.6]} 26... Bxe3 {[%clk 0:00:30.3]} 27. fxe3 {[%clk 0:00:45.5]}
27... Ne5 {[%clk 0:00:27.7]} 28. Bb3 {[%clk 0:00:38.8]} 28... Ng4 {[%clk
0:00:09.6]} 29. Ke2 {[%clk 0:00:39]} 29... Nxh2 {[%clk 0:00:09.4]} 30. Bd5
{[%clk 0:00:39.6]} 30... b6 {[%clk 0:00:09.4]} 31. Bb7 {[%clk 0:00:39.6]} 31...
a5 {[%clk 0:00:08.8]} 32. Kd3 {[%clk 0:00:39.6]} 32... Kf8 {[%clk 0:00:07.1]}
33. Kc4 {[%clk 0:00:38.1]} 33... Nf1 {[%clk 0:00:05.8]} 34. Kb5 {[%clk
0:00:35.6]} 34... Nxe3 {[%clk 0:00:05.1]} 35. b3 {[%clk 0:00:34.7]} 35... g5
{[%clk 0:00:03.7]} 36. Kxb6 {[%clk 0:00:34.5]} 36... f5 {[%clk 0:00:03.9]} 37.
Kxa5 {[%clk 0:00:33.8]} 37... g4 {[%clk 0:00:04.2]} 38. b4 {[%clk 0:00:32]}
38... f4 {[%clk 0:00:04.2]} 39. b5 {[%clk 0:00:31.8]} 39... h5 {[%clk 0:00:04]}
40. b6 {[%clk 0:00:31]} 40... Nc4+ {[%clk 0:00:03]} 41. Ka6 {[%clk 0:00:28]}
41... h4 {[%clk 0:00:02.8]} 42. Bf3 {[%clk 0:00:16.3]} 42... gxf3 {[%clk
0:00:02.9]} 43. b7 {[%clk 0:00:16]} 43... fxg2 {[%clk 0:00:01.7]} 44. b8=Q+
{[%clk 0:00:16.9]} 44... Kf7 {[%clk 0:00:01.7]} 45. Qxf4+ {[%clk 0:00:16.7]} 1-0